Cogmind - Beta 14 @@@ ROGUE MODE // 2025.03.05 @ 23:56:44 Player: Skergy Result: Destroyed by Y-54 Guardian with Flak Gun Performance ------------- Evolutions (0) 0 Regions Visited (3) 600 Robots Destroyed (46) 230 Value Destroyed (1227) 1227 Prototype IDs (13) 260 Alien Tech Used (0) 0 Bonus (0) 0 TOTAL SCORE: 2317 Bonus ------- None Cogmind --------- Core Integrity 0/250 Matter 237/300 Energy 180/180 System Corruption 0% Temperature Hot (267) Movement Core (800) Ox15 Location -7/Recycling Parts ------- > --- POWER (1) -------- Meta Core > --- PROPULSION (2) --- (None) > --- UTILITY (2) ------ High-capacity Storage Unit > --- WEAPON (2) ------- (None) > --- INVENTORY (20) --- Ion Engine Ion Engine Ion Engine High-capacity Storage Unit Humpback Medium Matter Pod (100) Subdweller Optics Signal Interpreter Improved Terrain Scanner Shield Generator Subdweller Beam Cannon Light Assault Rifle Battle Rifle Grenade Launcher Enhanced Flamer Makeshift Sword Scrap Shield Fragment (46) Peak State ------------ > --- POWER ------------ Meta Core > --- PROPULSION ------- Improved Treads Improved Treads Spiked Treads > --- UTILITY ---------- High-capacity Storage Unit Scrap Shield > --- WEAPON ----------- Heavy Riot Gun Battle Cannon Makeshift Sword > --- INVENTORY -------- Ion Engine Ion Engine Ion Engine Aluminum Leg High-capacity Storage Unit Humpback Medium Matter Pod Subdweller Optics Signal Interpreter Improved Terrain Scanner Shield Generator Shield Generator Subdweller Beam Cannon Light Assault Rifle Light Assault Rifle Battle Rifle Subdweller Machine Gun Grenade Launcher Scrap Shield Fragment [Rating: 36] Favorites ----------- Power Meta Core Engine Ion Engine Power Core Meta Core Propulsion Improved Treads Treads Improved Treads Leg Aluminum Leg Wheel Compact Wheel Utility High-capacity Storage Unit Device Shield Generator Storage High-capacity Storage Unit Processor Visual Processing Unit Protection Scrap Shield Weapon Battle Cannon Energy Gun Heavy Riot Gun Ballistic Gun Makeshift Shrapnel Gun Ballistic Cannon Battle Cannon Special Weapon Mining Laser Slashing Weapon Makeshift Sword Build | -11 -10 -10 -7 ------- Run | Yrd Mat Sub Rec Slots Evolved . | . . . . Power . | . . . . Propulsion . | . . . . Utility . | . . . . Weapon . | . . . . Parts Attached 48 | 6 7 33 2 Power 2 | 1 . 1 . Engine 1 | 1 . . . Core 1 | . . 1 . Reactor . | . . . . Propulsion 9 | 2 2 5 . Treads 6 | . 2 4 . Leg 1 | . . 1 . Wheel 2 | 2 . . . Hover . | . . . . Flight . | . . . . Utility 8 | 1 4 2 1 Device 4 | . 2 1 1 Storage 2 | 1 1 . . Processor 1 | . 1 . . Hackware . | . . . . Protection 1 | . . 1 . Artifact . | . . . . Weapon 29 | 2 1 25 1 Energy Gun 3 | . . 3 . Energy Cannon . | . . . . Ballistic Gun 10 | 2 1 7 . Ballistic Cannon 6 | . . 5 1 Launcher . | . . . . Special Weapon 7 | . . 7 . Impact Weapon . | . . . . Slashing Weapon 3 | . . 3 . Piercing Weapon . | . . . . Special Melee Weapon . | . . . . Unidentified Prototypes . | . . . . Parts Lost 17 | . 2 6 9 Power . | . . . . Propulsion 6 | . . 3 3 Utility 3 | . 1 . 2 Weapon 8 | . 1 3 4 Highest Loss Streak 9 | . 1 2 9 To Critical Strikes . | . . . . Average Slot Usage (%) 91 | . 99 90 88 Engine 2 | . 14 1 . Core 8 | . . 9 10 Treads 27 | . 26 27 19 Leg 2 | . . 2 9 Device 2 | . 13 1 . Storage 10 | . 14 10 10 Protection 8 | . . 9 8 Energy Gun 2 | . . 2 9 Ballistic Gun 10 | . 28 8 10 Ballistic Cannon 13 | . . 15 9 Slashing Weapon 1 | . . 1 . Peak Build Rating 36 | 6 12 36 34 Average Rating 29 | 4 10 32 33 On Entrance 13 | . 6 12 34 Naked Turns . | . . . . Heaviest Build 75 | 13 50 75 75 Greatest Support 66 | 26 46 66 46 Greatest Overweight (x) 16 | . 1 2 16 Average Overweight (x) . | . . 1 1 Largest Inventory Capacity 20 | 8 20 20 20 Average Capacity 19 | 6 13 20 20 Most Carried 20 | 6 16 20 20 Average Carried 18 | 4 9 19 19 Final Capacity 20 | 8 20 20 20 Final Carried 20 | 6 16 20 18 Class Distribution -------------------- 55% | Derelict-Tank 32% | Mutant 8% | Tank Dominant Class ---------------- Mutant | -10/Materials Derelict-Tank | -10/Subcaves Tank | -7/Recycling Resources | -11 -10 -10 -7 ----------- Run | Yrd Mat Sub Rec Matter Collected 1625 | 230 406 989 . Remotely . | . . . . Salvage Created 1344 | . 510 721 113 Parts 96 | . 41 50 5 Haulers Intercepted 2 | . 2 . . Recyclers Shooed . | . . . . Parts Field Recycled . | . . . . Retrieved Matter . | . . . . Parts Self-Destructed 17 | . . 17 . Prevented . | . . . . Kills | -11 -10 -10 -7 ------- Run | Yrd Mat Sub Rec Combat Hostiles Destroyed 35 | . 10 24 1 Guns 21 | . 10 11 . Cannons 13 | . . 13 . AOE 1 | . . . 1 Classes Destroyed 11 | . 8 3 . Worker 1 | . 1 . . Builder 1 | . 1 . . Hauler 2 | . 2 . . Recycler 3 | . 2 . 1 Operator 1 | . 1 . . Turret 2 | . . 2 . Watcher 1 | . 1 . . Swarmer 11 | . 8 3 . Grunt 2 | . 2 . . Sentry 2 | . . 1 1 Subdweller 20 | . . 20 . Best Kill Streak 4 | . 4 4 2 Combat Bots Only 3 | . 3 3 1 Max Kills in Single Turn 3 | . 3 2 1 Gunslinging . | . . . . Exploded 1 | . . . 1 Melee . | . . . . Uniques/NPCs Destroyed . | . . . . Combat | -11 -10 -10 -7 -------- Run | Yrd Mat Sub Rec Hostile Shots Fired 471 | . 49 179 243 Missed 178 | . 17 71 90 Damage Taken 3018 | . 538 1401 1079 Core 252 | . 15 52 185 Absorbed by Shields 230 | . 125 44 61 Core Remaining (%) 100 | 100 . . . Volleys Fired 170 | . 54 106 10 Largest 3 | . 2 3 3 Hottest 178 | . 40 178 129 Shots Fired 359 | . 108 225 26 Gun 219 | . 108 94 17 Cannon 105 | . . 96 9 Launcher . | . . . . Special 35 | . . 35 . Kinetic 293 | . 108 166 19 Thermal 35 | . . 35 . Explosive . | . . . . Electromagnetic 31 | . . 24 7 Robot Hit Streak 23 | . 7 23 3 Robot Miss Streak 7 | . 3 7 3 Penetration Max . | . . . . Secondary Targets 3 | . 1 2 . Max Gunslinging Chain 1 | . 1 1 . Shots Hit Robots 182 | . 45 122 15 Core Hits 85 | . 26 55 4 Critical Kills 1 | . 1 . . Critical Parts Destroyed . | . . . . Critical Strikes 4 | . 1 2 1 Destroy 1 | . 1 . . Blast 3 | . . 2 1 Melee Attacks 20 | . . 20 . Impact . | . . . . Slashing 20 | . . 20 . Piercing . | . . . . Sneak Attacks . | . . . . Combat Hostiles . | . . . . Follow-up Attacks . | . . . . Damage Inflicted 3283 | . 740 2124 419 Guns 1678 | . 487 1001 190 Cannons 1269 | . . 1123 146 Explosions 336 | . 253 . 83 Melee . | . . . . Ramming . | . . . . Kinetic 2561 | . 487 1840 234 Thermal 336 | . 253 . 83 Explosive . | . . . . Electromagnetic 386 | . . 284 102 Impact . | . . . . Slashing . | . . . . Piercing . | . . . . Highest Corruption . | . . . . Average Corruption . | . . . . Corruption Purged . | . . . . Corruption Blocked . | . . . . Overload Shots . | . . . . Overflow Damage 45 | . 45 . . Projectiles . | . . . . Explosions 45 | . 45 . . Melee . | . . . . Knockbacks 14 | . . 13 1 Impact . | . . . . Kinetic 14 | . . 13 1 Secondary . | . . . . Self-Inflicted Damage . | . . . . Shots . | . . . . Rammed . | . . . . Targets Rammed . | . . . . Kicked . | . . . . Crushed . | . . . . Highest Temperature 411 | . 8 86 411 Average Temperature 100 | . 5 26 212 Received Heat Transfer 579 | . 28 237 314 Effects 3 | . . . 3 Shutdowns 1 | . . . 1 Energy Bleed 1 | . . . 1 Interference 1 | . . . 1 Siege Activations . | . . . . Robots Corrupted . | . . . . Combat Hostiles . | . . . . Parts Fried . | . . . . Impact Corruptions . | . . . . Robots Melted . | . . . . Combat Hostiles . | . . . . Parts Melted 2 | . . . 2 Heat Transferred 300 | . 200 . 100 Parts Sabotaged . | . . . . Parts Stolen . | . . . . Parts Stripped . | . . . . Power Chain Reactions 1 | . . . 1 Alert | -11 -10 -10 -7 ------- Run | Yrd Mat Sub Rec Peak Influence 254 | . 254 . 43 Initial . | . . . . Average 93 | . 128 . 9 Maximum Alert Level 1 | . 1 . . Low Security (%) 97 | 100 96 . 100 Level 1 2 | . 3 . . Level 2 . | . . . . Level 3 . | . . . . Level 4 . | . . . . Level 5 . | . . . . High Security . | . . . . Max Security . | . . . . Squads Dispatched 1 | . 1 . . Investigation . | . . . . Extermination . | . . . . Reinforcement 1 | . 1 . . Assault . | . . . . Garrison . | . . . . Intercept . | . . . . Searches Triggered . | . . . . Construction Impeded . | . . . . Haulers Reinforced . | . . . . Active Scanning Responses . | . . . . Cargo Convoy Interrupts . | . . . . Stealth | -11 -10 -10 -7 --------- Run | Yrd Mat Sub Rec Distress Signals . | . . . . Communications Jammed . | . . . . Distress Signals . | . . . . Times Spotted 57 | . 19 35 3 Peak Tracking Total 6 | . 5 6 3 Tactical Retreats 10 | . . 10 . Traps | -11 -10 -10 -7 ------- Run | Yrd Mat Sub Rec Traps Triggered 3 | . 2 1 . Indirectly . | . . . . Trap Hack Attempts . | . . . . Triggered . | . . . . Disarmed . | . . . . Reprogrammed . | . . . . Reused . | . . . . Traps Extracted . | . . . . Installed . | . . . . Triggered . | . . . . Machines | -11 -10 -10 -7 ---------- Run | Yrd Mat Sub Rec Machines Disabled 5 | . 3 2 . Max in Single Turn 2 | . 2 1 . Machines Repaired . | . . . . Machines Dismantled . | . . . . Machines Sabotaged . | . . . . Overloaded Fab Kills . | . . . . Hacking | -11 -10 -10 -7 --------- Run | Yrd Mat Sub Rec Machines Accessed 7 | . 3 2 2 Terminals 5 | . 3 . 2 Fabricators . | . . . . Repair Stations . | . . . . Recycling Units . | . . . . Scanalyzers . | . . . . Garrison Access . | . . . . Total Hacks 21 | . 11 5 5 Successful 16 | . 7 5 4 Failed 5 | . 4 . 1 Catastrophic 1 | . . . 1 Database Lockouts . | . . . . Manual 11 | . 10 . 1 Terminals 16 | . 11 . 5 Fabricators . | . . . . Repair Stations . | . . . . Recycling Units . | . . . . Scanalyzers . | . . . . Garrison Access . | . . . . Terminal Hacks 9 | . 1 5 3 Record 4 | . . 4 . Robot Analysis 1 | . 1 . . Prototype ID Bank 1 | . . . 1 Alert Level 1 | . . . 1 Zone Layout 1 | . . . 1 Derelict Proto ID Bank 1 | . . 1 . Fabricator Hacks . | . . . . Repair Station Hacks . | . . . . Recycling Unit Hacks . | . . . . Scanalyzer . | . . . . Garrison Access Hacks . | . . . . Unauthorized Hacks 7 | . 6 . 1 Terminals 7 | . 6 . 1 Track 2 | . 2 . . Assimilate 1 | . 1 . . Botnet 3 | . 2 . 1 Operators 1 | . 1 . . Fabricators . | . . . . Repair Stations . | . . . . Recycling Units . | . . . . Scanalyzers . | . . . . Garrison Access . | . . . . Data Cores Recovered . | . . . . Used . | . . . . Hacking Detections 5 | . 3 . 2 Full Trace Events . | . . . . Feedback Events . | . . . . Feedback Blocked . | . . . . Robot Schematics Acquired . | . . . . Robots Built . | . . . . Authchips . | . . . . Time . | . . . . Total Robot Build Rating . | . . . . Part Schematics Acquired . | . . . . Parts Built . | . . . . Authchips . | . . . . Time . | . . . . Total Part Build Rating . | . . . . Parts Repaired . | . . . . Time . | . . . . Parts Recycled . | . . . . Recycled Matter . | . . . . Retrieved Matter . | . . . . Retrieved Components . | . . . . Parts Scanalyzed . | . . . . Part Schematics Acquired . | . . . . Parts Damaged . | . . . . Bothacking | -11 -10 -10 -7 ------------ Run | Yrd Mat Sub Rec Used RIF Installer . | . . . . Robots Hacked . | . . . . Non-combat . | . . . . Combat . | . . . . Robot Hacks Applied . | . . . . Relay Couplers Released . | . . . . Fabnet Peak Effective % . | . . . . Robots Rewired . | . . . . Allies Hacked . | . . . . Hacks Repelled . | . . . . Allies | -11 -10 -10 -7 -------- Run | Yrd Mat Sub Rec Total Allies . | . . . . Largest Group . | . . . . Highest-Rated Group . | . . . . Highest-Rated Ally . | . . . . Total Orders . | . . . . Ally Attacks . | . . . . Total Damage . | . . . . Kills . | . . . . Allies Corrupted . | . . . . Allies Melted . | . . . . Intel | -11 -10 -10 -7 ------- Run | Yrd Mat Sub Rec Robot Analysis Total 1 | . 1 . . Derelict Logs Recovered 2 | . . 2 . Drone Launches . | . . . . Drone Recoveries . | . . . . Exploration | -11 -10 -10 -7 ------------- Run | Yrd Mat Sub Rec Turns Passed 7781 | 58 804 6656 263 Spaces Moved 2896 | 49 320 2435 92 Core 5 | 4 . . 1 Treads 2818 | . 292 2435 91 Legs . | . . . . Wheels 73 | 45 28 . . Hover . | . . . . Flight . | . . . . Fastest Speed 50 | 50 90 240 240 Average Speed 233 | 87 184 241 247 Slowest Speed 850 | 100 240 320 850 Overloaded Moves . | . . . . Propulsion Burnouts . | . . . . Robots Hopped . | . . . . Cave-ins Triggered 1 | . 1 . . Exploration Rate (%) 48 | 3 51 98 42 Regions Visited 3 Branch Regions 2 Pre-discovered Areas 1 | . . 1 . Known Exits Taken . | . . . . Unknown Exits Taken 3 | 1 1 1 . Scrap Searched 11 | . . 11 . Spaces Dug 6 | . . 6 . Terrain Destroyed 35 | . 15 8 12 Melee 6 | . . 6 . Projectile 8 | . . 2 6 AOE 21 | . 15 . 6 Terrain Rammed . | . . . . Walls Destroyed . | . . . . Machines Disabled . | . . . . Actions | -11 -10 -10 -7 --------- Run | Yrd Mat Sub Rec Total 3528 | 60 441 2920 107 Wait 320 | . 31 288 1 Move 2892 | 48 318 2434 92 Hop . | . . . . Pick Up 40 | 6 19 14 1 Fast Attach 11 | 6 4 1 . Attach 13 | . 2 9 2 Detach 3 | . 1 2 . Swap 24 | . 1 23 . Drop 16 | . 10 5 1 Fire 170 | . 54 106 10 Melee 20 | . . 20 . Ram . | . . . . Kick . | . . . . Crush . | . . . . Escape Stasis 1 | . 1 . . Rewire . | . . . . Trap . | . . . . Miscellaneous 18 | . . 18 . Route ------- -11/Scrapyard -10/Materials (discovered 2 exits: [*Min] / *Sub) -10/Subcaves (discovered 3 exits: [*Mat x2] / *Rec) -7/Recycling History --------- Turn | Location | Event 13 | -11/Scrapyard | Discovered new exit (range 15) 59 | -11/Scrapyard | Entered Materials 231 | -10/Materials | Crushed by falling debris 231 | -10/Materials | Discovered new exit (range 15) 311 | -10/Materials | Build established: Mutant 559 | -10/Materials | Derelicts attacked the area 660 | -10/Materials | Discovered new exit (range 13) 863 | -10/Materials | Entered Subcaves 865 | -10/Subcaves | Shifting Twisted Machinery released Battle Cannon 867 | -10/Subcaves | Shifting Twisted Machinery released Mak. Shrapnel Gun 978 | -10/Subcaves | Discovered new exit (range 15) 1466 | -10/Subcaves | Visited 4L-MR0's lab 1515 | -10/Subcaves | Found Meta Core 1517 | -10/Subcaves | Attached Meta Core, gained temporary slots: Propulsion, Utility, Weapon 1826 | -10/Subcaves | Build established: Derelict-Tank 2371 | -10/Subcaves | Shifting Twisted Machinery released Sub. Optics 2387 | -10/Subcaves | Shifting Twisted Machinery released Battle Cannon 2923 | -10/Subcaves | A Subdweller sparked back to life 2923 | -10/Subcaves | A Subdweller sparked back to life 4179 | -10/Subcaves | Discovered new exit (range 9) 4181 | -10/Subcaves | Learned Materials stockpile data 4745 | -10/Subcaves | Shifting Twisted Machinery released Sub. Machine Gun 4795 | -10/Subcaves | Ambushed by Subdweller buried in earth 5032 | -10/Subcaves | Shifting Twisted Machinery released Battle Rifle 5216 | -10/Subcaves | A swath of the cavern ceiling suddenly collapsed 5825 | -10/Subcaves | Visited Clippyterm 5832 | -10/Subcaves | Learned location of Extension (-6) 6164 | -10/Subcaves | Learned Materials stockpile data 6169 | -10/Subcaves | Discovered new exit (range 6) 6419 | -10/Subcaves | Build established: Mutant 7158 | -10/Subcaves | Disturbed a concealed Subdweller 7473 | -10/Subcaves | Build established: Tank 7519 | -10/Subcaves | Entered Recycling 7770 | -7/Recycling | Core integrity fell below 50% 7779 | -7/Recycling | Core integrity fell below 20% 7782 | -7/Recycling | Destroyed by Y-54 Guardian with Flak Gun Last Messages --------------- 07765_ Overheating: Energy bleed (-9). 07765_ Temporary Weapon slot lost. 07765_ U-05 Engineer builds a Door. 07770_ Gauss Cannon destroyed. 07772_ Imp. Treads destroyed. 07772_ U-05 Engineer lays Concrete. 07773_ Power failure, Meta Core shutdown. 07773_ Overheating: System interference. 07773_ Sub. Machine Gun temporarily disabled. 07773_ U-05 Engineer lays Concrete. 07773_ Y-54 Guardian IFF system glitched. 07773_ U-05 Engineer destroyed. 07774_ Temporary Propulsion slot lost. 07776_ R-06 Scavenger collects Wheel. 07778_ Aluminum Leg destroyed. 07778_ R-06 Scavenger collects Lgt. Ion Engine. 07779_ R-06 Scavenger collects Welding Torch. 07780_ Y-54 Guardian misfires. 07781_ R-06 Scavenger collects Structural Scanner. 07782_ Sub. Machine Gun destroyed. Map ----- +----------------------------------------------------+ | ?????????????????????????????????????????????????? | | ?????????????????????????????????????????????????? | | ?????????????????????????????????????????????????? | | ?????????????????????????????????????????????????? | | ?????????????????????????????????????????????????? | | ?????????????????????????????????????????????????? | | ?????????????????????????????????????????????????? | | ?????????????????????????????????????????????????? | | ?????????????????????????????????????????????????? | | ?????????????????????????????????????????????????? | | ?????????????????????????????????????????????????? | | ?????????????????????????????????????????????????? | | ?????????????????????????????????????????????????? | | ?????????????????????????????????????????????????? | | ?????????????????????????????????????????????????? | | ????????#####????????##???##?????????????????????? | | ????????# #??????### ###;###?###???????????????? | | ????????# #???????; +? ????????????????? | | ????????# #?????### # ?????????????????? | | ????????# #?????# # # ??????????????????? | | ????????# #??????#; +???????????????????? | | ###?????# #???? ### %r;;#???????????????????? | | #?????# #?#???""; ;#???????????????????? | | #?????# #?#[???"# %Y r;#????????????????????? | | #???### #??[[?"?# r %;#????????????????????? | | #???#]] #???# ### @r#?????????????????????? | | #???#] ##### Y r r #?????????????????????? | | #???#]] r #?????????????????????? | | ####### r % #?????????????????????? | | + #######+#####?????????????????????? | | # #???# #?????????????????????? | | # #???# #?????????????????????? | | + ##### ! ! #?????????????????????? | | # + !! #?????????????????????? | | ### ######## !! #?????????????????????? | | #??????#! !#?????????????????????? | | #########+#######?# ! #?????????????????????? | | #### #?#!! #?????????????????????? | | ""## #?# ! #?????????????????????? | | Y"## #?# ! #?????????????????????? | | ""## ## !! #?????????????????????? | | #### ###########?????????????????????? | | #??# #???????????????????????????????? | | #??# #???????????????????????????????? | | #??# #???????????????????????????????? | | #??# #???????????????????????????????? | | #??# #???????????????????????????????? | | ?+ #???????????????????????????????? | | ##### #???????????????????????????????? | | ????##############???????????????????????????????? | +----------------------------------------------------+ Best States ------------- Heat Dissipation 25 Energy Generation 17 Energy Capacity 250 Matter Stores 300 Matter Capacity 300 Sight Range 16 Terrain Scan Range 16 Terrain Scan Density 10 Armor Coverage 800 Evasion (%) 42 Recoil Reduction 3 Item Schematics ----------------- None Robot Schematics ------------------ None Fabricated ------------ Nothing Alien Tech Used ----------------- None Achievements -------------- None Challenges ------------ None Game ------ Seed TractorProtonBank Manual? 0 Play Time 00:45:16 Cumulative 61.2 hours Start 2025.03.05 @ 23:09:23 End 2025.03.05 @ 23:56:44 Sessions 1 Manual Loads 0 Difficulty Rogue Special Mode None Game No. 60 Rogue 60 Adventurer 0 Explorer 0 Win Type - Total 2 Types 2/0/0/0/0/0/0/0/0 Lore% 35 Gallery% 41 Achievement% 39 Wizard Run 0 Options --------- Layout 0 ASCII 0 Keyboard 1 Movement Numpad Keybinds 0 Fullscreen 1 Font 24/Smallcaps Map View 76x50 Zoom Use 0% Tactical HUD 1 Map Filters NONE Filters NONE Steam 1 RUN: f3ffa99e-9833-4ebe-8f02-554758478f07